bitfinex-derivatives/quotes_BTCF0:USTF0_20250602
["timestamp","ask_amount","ask_price","bid_price","bid_amount"]
[1748842552036,0.03344297,104820.0,104810.0,1.20575456]
[1748842553239,0.03344297,104820.0,104810.0,0.84495456]
[1748842553443,0.03344297,104820.0,104810.0,1.56663818]
[1748842553831,0.03344297,104820.0,104810.0,1.4774081]
[1748842554045,0.03344297,104820.0,104810.0,1.36083453]
[1748842554241,0.03344297,104820.0,104810.0,1.56663818]
[1748842554743,0.22416167,104820.0,104810.0,1.56663818]
[1748842554945,0.22416167,104820.0,104810.0,1.50715141]
[1748842557348,0.22416167,104820.0,104810.0,1.47074401]
[1748842557740,0.03344297,104820.0,104810.0,1.47074401]
[1748842559345,0.22416167,104820.0,104810.0,1.47074401]
[1748842559551,0.22416167,104820.0,104810.0,1.90850401]
[1748842559747,0.06434297,104820.0,104810.0,1.90850401]
[1748842560154,0.06434297,104820.0,104810.0,1.94498713]
[1748842561752,0.06434297,104820.0,104810.0,1.22338713]
[1748842561947,0.06434297,104820.0,104810.0,1.94498713]
[1748842563659,0.06434297,104820.0,104810.0,1.90850401]
[1748842564554,0.06434297,104820.0,104810.0,1.90830401]
[1748842565250,0.06434297,104820.0,104810.0,1.90824554]
[1748842565759,0.03344297,104820.0,104810.0,1.90824554]
[1748842566555,0.69055016,104840.0,104830.0,0.1907002]
[1748842566556,0.55571974,104840.0,104830.0,0.1907002]
[1748842566865,0.53187558,104840.0,104830.0,0.82096773]
[1748842567356,0.67859068,104840.0,104830.0,0.82096636]
[1748842567551,0.67859068,104840.0,104830.0,0.70445126]
[1748842567756,0.68059068,104840.0,104830.0,0.82096636]
[1748842568057,0.68359068,104840.0,104830.0,0.82096636]
[1748842568261,0.68359068,104840.0,104830.0,0.86968419]
[1748842568759,0.68359068,104840.0,104830.0,0.87444419]
[1748842569445,0.68359068,104840.0,104830.0,0.89515475]
[1748842569645,0.56707558,104840.0,104830.0,0.89515475]
[1748842569849,0.56707558,104840.0,104830.0,0.90485948]
[1748842570460,0.56707558,104840.0,104830.0,0.84525214]
[1748842571354,0.56707558,104840.0,104830.0,0.48445214]
[1748842571565,0.68359068,104840.0,104830.0,0.84525214]
[1748842572156,0.68359068,104840.0,104830.0,0.49543211]
[1748842572365,0.68359068,104840.0,104830.0,0.80264771]
[1748842572662,0.68359068,104840.0,104830.0,0.80284771]
[1748842572856,0.68359068,104840.0,104830.0,0.61214721]
[1748842573163,0.68359068,104840.0,104830.0,0.68633261]
[1748842573356,1.16090578,104840.0,104830.0,0.13483211]
[1748842573558,1.16090578,104840.0,104830.0,0.09818196]
[1748842573559,1.01671974,104840.0,104830.0,0.09818196]
[1748842573751,1.19030866,104840.0,104830.0,0.05367783]
[1748842574348,1.19030866,104840.0,104830.0,0.24437833]
[1748842574551,1.19030866,104840.0,104830.0,0.25411533]
[1748842574763,1.29030866,104840.0,104830.0,0.25411533]
[1748842575264,1.17379845,104840.0,104830.0,0.25411533]
[1748842576164,1.17379845,104840.0,104830.0,0.24437833]
[1748842577950,1.17379845,104840.0,104830.0,0.05367783]
[1748842579963,0.95495846,104840.0,104830.0,0.24437833]
[1748842580167,1.13459846,104840.0,104830.0,0.24437833]
[1748842580461,1.13459846,104840.0,104830.0,0.24862787]
[1748842580765,1.25111845,104840.0,104830.0,0.05792737]
[1748842581357,1.25111845,104840.0,104830.0,0.24862787]
[1748842582465,1.25111845,104840.0,104830.0,0.05792737]
[1748842583870,1.61191845,104840.0,104830.0,0.05792737]
[1748842587963,1.25111845,104840.0,104830.0,0.05792737]
[1748842588162,1.61191845,104840.0,104830.0,0.05792737]
[1748842588561,1.61191845,104840.0,104830.0,0.00900954]
[1748842588868,1.61191845,104840.0,104830.0,0.00920954]
[1748842591157,1.52307429,104840.0,104830.0,0.00920954]
[1748842594165,1.61224686,104840.0,104830.0,0.00920954]
[1748842595062,0.9684343,104840.0,104830.0,0.00920954]
[1748842595258,1.52247429,104840.0,104830.0,0.00920954]
[1748842596468,1.52227429,104840.0,104830.0,0.00920954]
[1748842596667,1.4057543,104840.0,104830.0,0.04150954]
[1748842596863,1.52227429,104840.0,104830.0,0.04150954]
[1748842597260,1.52224975,104840.0,104830.0,0.04150954]
[1748842597973,1.52224975,104840.0,104830.0,0.07260954]
[1748842599768,0.8661143,104840.0,104830.0,0.26331004]
[1748842600072,1.52228975,104840.0,104830.0,0.07260954]
[1748842600265,1.6387852,104840.0,104830.0,0.10540954]
[1748842600570,1.2779852,104840.0,104830.0,0.10540954]
[1748842601373,1.6387852,104840.0,104830.0,0.10540954]
[1748842601572,1.75770934,104840.0,104830.0,0.10540954]
[1748842602066,1.75770934,104840.0,104830.0,0.07260954]
[1748842602775,1.75770934,104840.0,104830.0,0.04150954]
[1748842603173,1.39690934,104840.0,104830.0,0.04150954]
[1748842603575,1.39690934,104840.0,104830.0,0.07230954]
[1748842604272,1.75770934,104840.0,104830.0,0.07230954]
[1748842607171,1.75770934,104840.0,104830.0,0.04130954]
[1748842607366,1.75770934,104840.0,104830.0,0.04150954]
[1748842611972,1.52471844,104840.0,104830.0,0.04150954]
[1748842612181,1.75770934,104840.0,104830.0,0.04150954]
[1748842619178,1.75770934,104840.0,104830.0,0.00920954]
[1748842619678,0.1907005,104830.0,104820.0,0.03334297]
[1748842619879,0.37109595,104830.0,104820.0,0.03334297]
[1748842620180,0.60651554,104830.0,104820.0,0.03334297]
[1748842620377,0.63701554,104830.0,104820.0,0.00034297]
[1748842620780,0.99781554,104830.0,104820.0,0.00034297]
[1748842620982,1.09781554,104830.0,104820.0,0.00034297]
[1748842621284,1.09981554,104830.0,104820.0,0.00511297]
[1748842621786,0.98332009,104830.0,104820.0,0.00511297]
[1748842621984,0.98432009,104830.0,104820.0,0.00511297]
[1748842622777,1.10081554,104830.0,104820.0,0.00511297]
[1748842624188,0.98432009,104830.0,104820.0,0.00511297]
[1748842624981,0.98432009,104830.0,104820.0,0.00936251]
[1748842627591,1.30538464,104830.0,104820.0,0.00936251]
[1748842627888,1.42188009,104830.0,104820.0,0.04196251]
[1748842631393,1.42188009,104830.0,104820.0,0.74247666]
[1748842631394,1.09918009,104830.0,104820.0,0.74247666]
[1748842631589,1.03902712,104830.0,104820.0,0.77347666]
[1748842631897,1.09853999,104830.0,104820.0,0.77347666]
[1748842633291,1.09853999,104830.0,104820.0,0.41267666]
[1748842634189,1.03902712,104830.0,104820.0,0.41267666]
[1748842635090,1.07132712,104830.0,104820.0,0.41267666]
[1748842636102,1.07132712,104830.0,104820.0,0.29618121]
[1748842636589,1.13512712,104830.0,104820.0,0.29618121]
[1748842637294,1.13514785,104830.0,104820.0,0.29618121]
[1748842638396,1.49594785,104830.0,104820.0,0.29618121]
[1748842638596,1.13514785,104830.0,104820.0,0.29618121]
[1748842640501,1.13514785,104830.0,104820.0,0.07446251]
[1748842640695,1.13514785,104830.0,104820.0,0.07426251]
[1748842640995,1.13514785,104830.0,104820.0,0.07446251]
[1748842641603,1.49594785,104830.0,104820.0,0.07446251]
[1748842642699,1.49594785,104830.0,104820.0,0.10646251]
[1748842644702,1.49594785,104830.0,104820.0,0.07446251]
[1748842645105,1.49594785,104830.0,104820.0,0.04196251]
[1748842645307,1.37943167,104830.0,104820.0,0.04196251]
[1748842645603,1.49594785,104830.0,104820.0,0.04196251]
[1748842646596,1.37943167,104830.0,104820.0,0.04196251]
[1748842646892,1.49594785,104830.0,104820.0,0.04196251]
[1748842649105,1.37943167,104830.0,104820.0,0.04196251]
[1748842649406,1.49594785,104830.0,104820.0,0.04196251]
[1748842653505,1.05834785,104830.0,104820.0,0.04196251]
[1748842653695,1.49662785,104830.0,104820.0,0.04196251]
[1748842657405,1.49663131,104830.0,104820.0,0.04196251]
[1748842657796,1.38011167,104830.0,104820.0,0.04196251]
[1748842658196,1.49663131,104830.0,104820.0,0.04196251]
[1748842659298,1.40736014,104830.0,104820.0,0.04196251]
[1748842659699,1.49676451,104830.0,104820.0,0.04196251]
[1748842659908,1.40736014,104830.0,104820.0,0.04196251]
[1748842660103,1.49676456,104830.0,104820.0,0.04196251]
[1748842660409,1.40736014,104830.0,104820.0,0.04196251]
[1748842660908,1.52628428,104830.0,104820.0,0.00936251]
[1748842661101,1.52628428,104830.0,104820.0,0.00916251]
[1748842661307,1.52628428,104830.0,104820.0,0.00936251]
[1748842663005,0.1907187,104820.0,104810.0,0.0311]
[1748842663198,1.29697034,104820.0,104810.0,0.0311]
[1748842663399,1.2110507,104820.0,104810.0,0.0311]
[1748842664209,1.2110507,104820.0,104810.0,0.0321]
[1748842664807,1.3110507,104820.0,104810.0,0.0321]
[1748842665302,1.3110507,104820.0,104810.0,0.03687]
[1748842665693,1.19453106,104820.0,104810.0,0.03687]
[1748842665907,1.19453106,104820.0,104810.0,0.34412654]
[1748842666104,1.19453106,104820.0,104810.0,0.40652654]
[1748842666305,1.3110507,104820.0,104810.0,0.40652654]
[1748842666795,1.3110507,104820.0,104810.0,0.2276069]
[1748842667001,1.3110507,104820.0,104810.0,0.03687]
[1748842669812,1.3110507,104820.0,104810.0,0.04111954]
[1748842670107,1.19453106,104820.0,104810.0,0.04111954]
[1748842670307,1.3110507,104820.0,104810.0,0.04111954]
[1748842670514,1.19453106,104820.0,104810.0,0.04111954]
[1748842670807,1.3110507,104820.0,104810.0,0.04111954]
[1748842673209,1.3110507,104820.0,104810.0,0.07431954]
[1748842675110,1.42757034,104820.0,104810.0,0.04111954]
[1748842675310,1.33815922,104820.0,104810.0,0.01001954]
[1748842676916,1.33815922,104820.0,104810.0,0.00577]
[1748842681712,1.77619922,104820.0,104810.0,0.03857]
[1748842682413,1.10511994,104820.0,104810.0,0.03857]
[1748842682619,1.65971958,104820.0,104810.0,0.03857]
[1748842682921,1.76163958,104820.0,104810.0,0.03857]
[1748842683520,1.10511994,104820.0,104810.0,0.03857]
[1748842683823,1.76159958,104820.0,104810.0,0.03857]
[1748842684022,1.76159958,104820.0,104810.0,0.10801954]
[1748842684410,1.88052372,104820.0,104810.0,0.10801954]
[1748842685012,1.88052372,104820.0,104810.0,0.10377]
[1748842686014,1.88052372,104820.0,104810.0,0.10801954]
[1748842686611,1.51972372,104820.0,104810.0,0.10801954]
[1748842686819,1.52004372,104820.0,104810.0,0.10801954]
[1748842687017,0.87283273,104820.0,104810.0,0.41527588]
[1748842687317,1.19179994,104820.0,104810.0,0.77607588]
[1748842687618,1.39765462,104820.0,104810.0,0.77607588]
[1748842687815,1.30831958,104820.0,104810.0,0.77607588]
[1748842688208,1.30831958,104820.0,104810.0,0.65955624]
[1748842688414,1.33941958,104820.0,104810.0,0.29875624]
[1748842689128,1.24247503,104820.0,104810.0,0.29875624]
[1748842689317,1.35899467,104820.0,104810.0,0.29875624]
[1748842691119,1.47791881,104820.0,104810.0,0.29875624]
[1748842691331,1.35899467,104820.0,104810.0,0.29875624]
[1748842691911,1.35899467,104820.0,104810.0,0.10801954]
[1748842692115,1.51041881,104820.0,104810.0,0.29875634]
[1748842693021,1.51041881,104820.0,104810.0,0.41527598]
[1748842693022,1.32753467,104820.0,104810.0,0.41527598]
[1748842693228,1.32753467,104820.0,104810.0,0.41102644]
[1748842693827,1.32753467,104820.0,104810.0,0.2945068]
[1748842694027,1.36023467,104820.0,104810.0,0.2945068]
[1748842694216,1.39183467,104820.0,104810.0,0.41527598]
[1748842694415,1.481224,104820.0,104810.0,0.41527598]
[1748842695115,1.481224,104820.0,104810.0,0.41102644]
[1748842695313,0.941304,104820.0,104810.0,0.41102644]
[1748842695529,1.481704,104820.0,104810.0,0.45318499]
[1748842696216,1.481704,104820.0,104810.0,0.45743453]
[1748842697027,1.36518436,104820.0,104810.0,0.45743453]
[1748842697327,1.481704,104820.0,104810.0,0.45743453]
[1748842697826,1.481704,104820.0,104810.0,0.34091489]
[1748842698328,1.481704,104820.0,104810.0,0.33670311]
[1748842699031,1.512504,104820.0,104810.0,0.33670311]
[1748842700627,1.074064,104820.0,104810.0,0.33670311]
[1748842700827,1.42271467,104820.0,104810.0,0.33670311]
[1748842701433,1.42271467,104820.0,104810.0,0.45322275]
[1748842702130,1.51211445,104820.0,104810.0,0.45322275]
[1748842702726,1.51211445,104820.0,104810.0,0.45322559]
[1748842703228,0.86245481,104820.0,104810.0,0.85472528]
[1748842703430,0.86245481,104820.0,104810.0,0.89941342]
[1748842703633,0.76245481,104820.0,104810.0,0.89941342]
[1748842704031,0.66049481,104820.0,104810.0,0.89941342]
[1748842704226,0.57109503,104820.0,104810.0,0.89941342]
[1748842704839,0.57109503,104820.0,104810.0,1.33725342]
[1748842705532,0.57109503,104820.0,104810.0,1.39686076]
[1748842706533,0.57109503,104820.0,104810.0,1.33300388]
[1748842706932,0.57109503,104820.0,104810.0,1.33291839]
[1748842707135,0.21029379,104820.0,104810.0,1.33291839]
[1748842708134,0.44333307,104820.0,104810.0,0.41775875]
[1748842708326,0.54013307,104820.0,104810.0,0.1905718]
[1748842708635,1.09033285,104820.0,104810.0,0.08092785]
[1748842709134,1.09033285,104820.0,104810.0,0.04792785]
[1748842709334,1.09033285,104820.0,104810.0,0.04812785]
[1748842711238,0.97384545,104820.0,104810.0,0.04814076]
[1748842712740,0.97384545,104820.0,104810.0,0.04814244]
[1748842715737,0.97384545,104820.0,104810.0,0.04814394]
[1748842716938,0.97384545,104820.0,104810.0,0.04822756]
[1748842719042,0.61304545,104820.0,104810.0,0.04822756]
[1748842719242,0.97384545,104820.0,104810.0,0.04822756]
[1748842719944,0.97384545,104820.0,104810.0,0.00605362]
[1748842720139,0.61304545,104820.0,104810.0,0.04823289]
[1748842720346,0.97384545,104820.0,104810.0,0.04823289]
[1748842721751,0.97384545,104820.0,104810.0,0.08083289]
[1748842722953,1.41152545,104820.0,104810.0,0.08083289]
[1748842723141,0.97384545,104820.0,104810.0,0.08083289]
[1748842723346,1.39709357,104820.0,104810.0,0.27156959]
[1748842723550,1.51364545,104820.0,104810.0,0.30226959]
[1748842723746,1.51364545,104820.0,104810.0,0.30651913]
[1748842724446,1.51364545,104820.0,104810.0,0.30651923]
[1748842724653,0.97384545,104820.0,104810.0,0.30651923]
[1748842724852,1.51364545,104820.0,104810.0,0.30651923]
[1748842725149,1.51364545,104820.0,104810.0,0.33741923]
[1748842726648,1.51364545,104820.0,104810.0,0.33316969]
[1748842727654,1.51364545,104820.0,104810.0,0.33741923]
[1748842727856,1.51364545,104820.0,104810.0,0.30651923]
[1748842728757,1.51364545,104820.0,104810.0,0.30227055]
[1748842731170,1.51363419,104820.0,104810.0,0.30227055]
[1748842733463,0.71519419,104820.0,104810.0,0.30227651]
[1748842733671,1.15283419,104820.0,104810.0,0.30227651]
[1748842734170,1.15283419,104820.0,104810.0,0.45091713]
[1748842736469,1.15283419,104820.0,104810.0,0.04823981]
[1748842736668,1.74910369,104820.0,104810.0,0.04823981]
[1748842736870,1.65969917,104820.0,104810.0,0.04823981]
[1748842737168,1.65969917,104820.0,104810.0,0.00605362]
[1748842737469,1.65969917,104820.0,104810.0,0.00585362]
[1748842737672,1.65969917,104820.0,104810.0,0.00605362]
[1748842737970,1.11989917,104820.0,104810.0,0.00605362]
[1748842738170,1.65969917,104820.0,104810.0,0.00605362]
[1748842738373,1.65969917,104820.0,104810.0,0.03695362]
[1748842739168,1.5431676,104820.0,104810.0,0.03695362]
[1748842740763,1.5431676,104820.0,104810.0,0.00605362]
[1748842740965,0.1907367,104810.0,104800.0,0.00224221]
[1748842741170,0.72838637,104810.0,104800.0,0.04446152]
[1748842741371,0.72838637,104810.0,104800.0,0.04466152]
[1748842742173,0.6118367,104810.0,104800.0,0.04766152]
[1748842742469,0.72838637,104810.0,104800.0,0.04766152]
[1748842742874,0.82838637,104810.0,104800.0,0.04766152]
[1748842743276,0.82838637,104810.0,104800.0,0.07906152]
[1748842743780,0.83138637,104810.0,104800.0,0.07906152]
[1748842744077,0.83338637,104810.0,104800.0,0.07606152]
[1748842744279,1.37350637,104810.0,104800.0,0.07606152]
[1748842744575,1.37350637,104810.0,104800.0,0.00244221]
[1748842744782,0.1907731,104790.0,104780.0,0.70260611]
[1748842744964,0.86644626,104790.0,104780.0,0.44192772]
[1748842745273,0.98908516,104790.0,104780.0,0.43005015]
[1748842745464,0.98908516,104790.0,104780.0,0.3936]
[1748842745666,1.04861467,104790.0,104780.0,0.3936]
[1748842745869,1.04861467,104790.0,104780.0,0.3946]
[1748842746070,1.08111467,104790.0,104780.0,0.3946]
[1748842746271,1.18111467,104790.0,104780.0,0.3946]
[1748842747368,1.18211467,104790.0,104780.0,0.3936]
[1748842747570,1.09277577,104790.0,104780.0,0.3936]
[1748842748172,1.09477577,104790.0,104780.0,0.3936]
[1748842748881,1.09477577,104790.0,104780.0,0.0002]
[1748842749180,1.09477577,104790.0,104770.0,0.00224281]
[1748842749181,0.1907914,104780.0,104770.0,0.00224281]
[1748842749381,0.46132014,104780.0,104770.0,0.03254281]
[1748842750985,0.46132014,104780.0,104770.0,0.03354281]
[1748842751284,0.56132014,104780.0,104770.0,0.03354281]
[1748842751584,0.56132014,104780.0,104770.0,0.22335231]
[1748842751773,0.56232014,104780.0,104770.0,0.25455231]
[1748842751969,0.44777047,104780.0,104770.0,0.25455231]
[1748842752170,0.44777047,104780.0,104770.0,0.06374281]
[1748842752986,0.44777047,104780.0,104770.0,0.25455241]
[1748842753675,0.3882914,104780.0,104770.0,0.25455241]
[1748842756187,0.3882914,104780.0,104770.0,0.06374281]
[1748842757986,0.3882914,104780.0,104770.0,0.73190208]
[1748842757987,0.3261914,104780.0,104770.0,0.73190208]
[1748842758183,0.3958714,104780.0,104770.0,0.76490208]
[1748842758988,0.2958714,104780.0,104770.0,0.76490208]
[1748842759175,0.2958714,104780.0,104770.0,0.77848394]
[1748842759380,0.2958714,104780.0,104770.0,0.76490208]
[1748842759575,0.2958714,104780.0,104770.0,0.80945116]
[1748842759782,0.2958714,104780.0,104770.0,0.82302456]
[1748842760082,0.2958714,104780.0,104770.0,0.8272741]
[1748842760387,0.2958714,104780.0,104770.0,0.8137007]
[1748842760889,0.2958714,104780.0,104770.0,0.8237007]
[1748842761288,0.2958714,104780.0,104770.0,0.70715103]
[1748842761484,0.2958714,104780.0,104770.0,0.8237007]
[1748842761683,0.2958714,104780.0,104770.0,0.82370835]
[1748842763482,0.41242107,104780.0,104770.0,0.47334908]
[1748842763687,0.50762107,104780.0,104770.0,0.06819235]
[1748842763888,0.50762107,104780.0,104770.0,0.03699235]
[1748842764291,0.56710014,104780.0,104770.0,0.03699235]
[1748842764785,0.0189792,104770.0,104750.0,0.05960737]
[1748842764981,1.38692714,104760.0,104750.0,3e-08]
[1748842765181,1.47626604,104760.0,104750.0,3e-08]
[1748842765377,1.53570467,104760.0,104750.0,0.0002]
[1748842765582,1.53570467,104760.0,104740.0,0.00210044]
[1748842765583,0.190846,104750.0,104740.0,0.00210044]
[1748842765782,0.71849246,104750.0,104740.0,0.00210044]
[1748842766085,1.14298279,104750.0,104740.0,0.30951421]
[1748842766278,1.14298279,104750.0,104740.0,0.34241421]
[1748842766684,1.14298279,104750.0,104740.0,0.22586454]
[1748842767190,1.17348279,104750.0,104740.0,0.22586454]
[1748842767393,1.17448279,104750.0,104740.0,0.23486454]
[1748842767590,0.63344279,104750.0,104740.0,0.23486454]
[1748842767790,1.17544279,104750.0,104740.0,0.24486454]
[1748842768280,1.17544279,104750.0,104740.0,0.05400044]
[1748842769789,1.17544279,104750.0,104740.0,0.27546454]
[1748842770495,0.27364279,104750.0,104740.0,0.27546454]
[1748842770795,0.81520279,104750.0,104740.0,0.27546454]
[1748842771595,0.27364279,104750.0,104740.0,0.27546454]
[1748842771986,0.81512279,104750.0,104740.0,0.27546454]
[1748842772188,0.81512279,104750.0,104740.0,0.39201421]
[1748842772189,0.83188433,104750.0,104740.0,0.39201421]
[1748842772394,0.39304433,104750.0,104740.0,0.39201421]
[1748842774501,0.39304433,104750.0,104740.0,0.39626375]
[1748842774694,0.42544433,104750.0,104740.0,0.39626375]
[1748842774902,0.34544279,104750.0,104740.0,0.75706375]
[1748842775199,0.31494279,104750.0,104740.0,0.75706375]
[1748842776399,0.36167051,104750.0,104740.0,0.75706375]
[1748842777499,0.25907051,104750.0,104740.0,0.75706375]
[1748842778396,0.25907051,104750.0,104740.0,0.77080535]
[1748842778596,0.25907051,104750.0,104740.0,0.75706375]
[1748842779604,0.25907051,104750.0,104740.0,0.64051408]
[1748842779904,0.32537051,104750.0,104740.0,0.75706375]
[1748842780692,0.32537051,104750.0,104740.0,0.64051408]
[1748842781096,0.32537051,104750.0,104740.0,0.65425568]
[1748842782806,0.32537051,104750.0,104740.0,0.77080535]
[1748842787504,0.43537051,104750.0,104740.0,0.77080535]
[1748842788606,0.43537051,104750.0,104740.0,0.77557535]
[1748842789610,0.43537051,104750.0,104740.0,0.8120255]
[1748842791713,0.46567051,104750.0,104740.0,0.8447255]
[1748842792506,0.46567051,104750.0,104740.0,0.90433284]
[1748842792705,0.46567051,104750.0,104740.0,0.9181309]
[1748842793000,0.46567051,104750.0,104740.0,0.90433284]
[1748842793704,0.46567051,104750.0,104740.0,0.91813068]
[1748842793915,0.46567051,104750.0,104740.0,0.90433284]
[1748842794715,0.46567051,104750.0,104740.0,0.86788269]
[1748842796219,0.46567051,104750.0,104740.0,0.76515164]
[1748842796517,0.46567051,104750.0,104740.0,0.75133302]
[1748842796914,0.46567051,104750.0,104740.0,0.76515245]
[1748842797219,0.40217051,104750.0,104740.0,1.20652228]
[1748842797412,0.40217051,104750.0,104740.0,1.19317708]
[1748842797718,0.43487051,104750.0,104740.0,1.29593329]
[1748842797917,0.05459679,104750.0,104740.0,1.29593329]
[1748842798108,0.05459679,104750.0,104740.0,1.2014149]
[1748842798109,0.02149679,104750.0,104740.0,1.2014149]
[1748842798411,0.02149679,104750.0,104740.0,1.18768636]
[1748842798715,0.02149679,104750.0,104740.0,1.15905421]
[1748842799210,0.02149679,104750.0,104740.0,1.09827535]
[1748842799609,0.02149679,104750.0,104740.0,1.32124441]
[1748842800307,0.02149679,104750.0,104740.0,1.33589461]
[1748842800516,0.02149679,104750.0,104740.0,1.34944565]
[1748842801218,0.02149679,104750.0,104740.0,1.44491351]
[1748842801515,0.02149679,104750.0,104740.0,1.43136247]
[1748842801722,0.02149679,104750.0,104740.0,1.44487509]
[1748842801918,0.02149679,104750.0,104740.0,1.44484383]
[1748842802118,0.02149679,104750.0,104740.0,1.43019377]
[1748842802315,0.02149679,104750.0,104740.0,1.43019231]
[1748842803010,0.02149679,104750.0,104740.0,1.43020887]
[1748842803211,0.02149679,104750.0,104740.0,1.77751241]
[1748842803411,0.02149679,104750.0,104740.0,1.89334295]
[1748842803823,0.02149679,104750.0,104740.0,1.87985159]
[1748842804021,0.02149679,104750.0,104740.0,1.89333786]
[1748842804529,0.02149679,104750.0,104740.0,1.89333702]
[1748842804820,0.02149679,104750.0,104740.0,1.89333705]
[1748842805007,0.02149679,104750.0,104740.0,1.89334088]
[1748842805215,0.02149679,104750.0,104740.0,1.87985159]
[1748842805406,0.02149679,104750.0,104740.0,1.89334109]
[1748842805609,0.02149679,104750.0,104740.0,1.77597562]
[1748842806009,0.02149679,104750.0,104740.0,1.79060175]
[1748842806207,0.02149679,104750.0,104740.0,1.77597562]
[1748842806410,0.02149679,104750.0,104740.0,1.78946797]
[1748842806716,0.02149679,104750.0,104740.0,1.79060175]
[1748842806915,0.02149679,104750.0,104740.0,1.77597562]
[1748842807116,0.02149679,104750.0,104740.0,1.80409407]
[1748842807422,0.02149679,104750.0,104740.0,1.79060175]
[1748842807634,0.02149679,104750.0,104740.0,1.77597562]
[1748842807925,0.002,104750.0,104740.0,1.77597562]
[1748842808121,0.002,104750.0,104740.0,1.8040379]
[1748842808321,0.002,104750.0,104740.0,1.77597562]
[1748842808515,0.002,104750.0,104740.0,1.78936367]
[1748842808823,0.00014297,104760.0,104750.0,0.1908459]
[1748842809124,0.00014297,104760.0,104750.0,1.61435621]
[1748842809320,0.00014297,104760.0,104750.0,1.64595621]
[1748842810017,0.00014297,104760.0,104750.0,1.66231867]
[1748842810217,0.00014297,104760.0,104750.0,1.66232398]
[1748842810424,0.00014297,104760.0,104750.0,1.64895621]
[1748842810625,0.00014297,104760.0,104750.0,1.66232397]
[1748842810817,0.00014297,104760.0,104750.0,1.64895621]
[1748842811119,0.00014297,104760.0,104750.0,1.66432312]
[1748842811428,0.00014297,104760.0,104750.0,1.7128755]
[1748842811725,0.00014297,104760.0,104750.0,1.72980885]
[1748842811923,0.00014297,104760.0,104750.0,1.62662589]
[1748842812225,0.00014297,104760.0,104750.0,1.74317564]
[1748842812520,0.00014297,104760.0,104750.0,1.72980885]
[1748842812722,0.00014297,104760.0,104750.0,1.17497918]
[1748842812922,0.00014297,104760.0,104750.0,1.72976885]
[1748842812923,0.25357067,104760.0,104750.0,1.72976885]
[1748842813124,0.28527067,104760.0,104750.0,1.74333831]
[1748842814119,0.28527067,104760.0,104750.0,1.74810831]
[1748842814314,0.28527067,104760.0,104750.0,1.76154768]
[1748842814515,0.28527067,104760.0,104750.0,1.74810831]
[1748842814732,0.28527067,104760.0,104750.0,1.76154856]
[1748842814922,0.28527067,104760.0,104750.0,1.76154854]
[1748842815133,0.28527067,104760.0,104750.0,2.12234854]
[1748842815316,0.28527067,104760.0,104750.0,2.10890831]
[1748842815622,0.28527067,104760.0,104750.0,2.12234854]
[1748842816322,0.28527067,104760.0,104750.0,2.06035567]
[1748842816715,0.28527067,104760.0,104750.0,2.12234147]
[1748842816917,0.28527067,104760.0,104750.0,2.12234145]
[1748842817123,0.28527067,104760.0,104750.0,2.12234143]
[1748842817317,0.03034297,104760.0,104750.0,2.12234143]
[1748842817829,0.03034297,104760.0,104750.0,2.10890831]
[1748842818014,0.03034297,104760.0,104750.0,2.12228988]
[1748842818218,0.03034297,104760.0,104750.0,2.1234364]
[1748842818929,0.03034297,104760.0,104750.0,2.12343311]
[1748842819126,0.03034297,104760.0,104750.0,1.40183311]
[1748842819328,0.03034297,104760.0,104750.0,2.12343311]
[1748842819632,0.03034297,104760.0,104750.0,2.12343307]
[1748842820129,0.03034297,104760.0,104750.0,2.11005483]
[1748842820516,0.03034297,104760.0,104750.0,2.12343431]
[1748842821129,0.03034297,104760.0,104750.0,2.12768472]
[1748842821924,0.03034297,104760.0,104750.0,2.14233622]
[1748842822132,0.03034297,104760.0,104750.0,2.12768472]
[1748842822641,0.06054297,104760.0,104750.0,2.12768472]
[1748842823432,0.06054297,104760.0,104750.0,2.14109218]
[1748842823728,0.06054297,104760.0,104750.0,1.70285219]
[1748842824026,0.06054297,104760.0,104750.0,2.12732472]
[1748842824532,0.06054297,104760.0,104750.0,2.1554078]
[1748842825032,0.00014297,104760.0,104750.0,2.1554078]
[1748842825224,0.0505792,104770.0,104760.0,0.1908277]
[1748842825225,0.0313,104770.0,104760.0,0.1908277]
[1748842825425,0.3005062,104780.0,104770.0,0.1908094]
[1748842825628,0.3005062,104780.0,104770.0,1.09649398]
[1748842825831,0.3005062,104780.0,104770.0,1.2006819]
[1748842826225,0.3005062,104780.0,104770.0,1.20182842]
[1748842826733,0.2538065,104780.0,104770.0,1.20182842]
[1748842827034,0.2867065,104780.0,104770.0,1.23492842]
[1748842828129,0.2867065,104780.0,104770.0,1.28223949]
[1748842828731,0.2867065,104780.0,104770.0,1.72011949]
[1748842829037,0.0959,104780.0,104770.0,1.67546886]
[1748842829427,0.0959,104780.0,104770.0,1.68869402]
[1748842829737,0.0959,104780.0,104770.0,1.63903395]
[1748842830144,0.2856912,104780.0,104770.0,1.63903395]
[1748842830427,0.2856912,104780.0,104770.0,1.69070093]
[1748842830629,0.2856912,104780.0,104770.0,1.67749431]
[1748842830828,0.2856912,104780.0,104770.0,1.69547097]
[1748842831038,0.2856912,104780.0,104770.0,1.68226431]
[1748842831226,0.2856912,104780.0,104770.0,1.69547097]
[1748842831427,0.2856912,104780.0,104770.0,1.68226431]
[1748842831936,0.0949,104780.0,104770.0,1.68226431]
[1748842832230,0.0949,104780.0,104770.0,1.69547081]
[1748842832428,0.0949,104780.0,104770.0,1.68226431]
[1748842834435,0.0949,104780.0,104770.0,1.69546857]
[1748842834636,0.0949,104780.0,104770.0,1.68226431]
[1748842835134,0.0949,104780.0,104770.0,1.69547046]
[1748842835440,0.0949,104780.0,104770.0,1.69971999]
[1748842835936,0.0949,104780.0,104770.0,1.56996418]
[1748842836138,0.0949,104780.0,104770.0,1.68651385]
[1748842836339,0.0949,104780.0,104770.0,1.66325963]
[1748842836632,0.0949,104780.0,104770.0,1.78794186]
[1748842836837,0.2856912,104780.0,104770.0,1.30147943]
[1748842837032,0.0949,104780.0,104770.0,1.6359624]
[1748842837237,0.0949,104780.0,104770.0,1.75251207]
[1748842837439,0.0949,104780.0,104770.0,1.75251204]
[1748842837832,0.0949,104780.0,104770.0,1.73931943]
[1748842838034,0.0949,104780.0,104770.0,1.75251202]
[1748842838830,0.0949,104780.0,104770.0,1.73931943]
[1748842839034,0.0949,104780.0,104770.0,1.75250433]
[1748842839439,0.0949,104780.0,104770.0,2.11330435]
[1748842839942,0.2856912,104780.0,104770.0,2.1133017]
[1748842840142,0.2856912,104780.0,104770.0,2.11330169]
[1748842840640,0.2856912,104780.0,104770.0,2.14974977]
[1748842840943,0.2856912,104780.0,104770.0,2.14975031]
[1748842841240,0.2856912,104780.0,104770.0,2.14975032]
[1748842841643,0.2856912,104780.0,104770.0,2.14974908]
[1748842841942,0.2856912,104780.0,104770.0,2.113301]
[1748842842441,0.2856904,104780.0,104770.0,2.11330027]
[1748842842944,0.2856904,104780.0,104770.0,2.11330026]
[1748842843140,0.2856904,104780.0,104770.0,2.0472604]
[1748842843336,0.2856904,104780.0,104770.0,2.06044123]